Cogmind - Beta 14 @@@ ROGUE MODE // 2025.01.07 @ 12:20:04 Player: acra Result: Destroyed by L7-3I5(M) with Enhanced Flamer Performance ------------- Evolutions (3) 1500 Regions Visited (8) 1600 Robots Destroyed (55) 275 Value Destroyed (1941) 1941 Prototype IDs (24) 480 Alien Tech Used (0) 0 Bonus (741) 741 TOTAL SCORE: 6537 Bonus ------- High Alert Combat Kills 141 Aligned with FarCom 300 Met Imprinter 300 Cogmind --------- Core Integrity 0/700 Matter 300/300 Energy 100/100 System Corruption 2% Temperature Cool (20) Movement Core (250) Ox4 Location -6/Zion Parts ------- > --- POWER (2) -------- (None) > --- PROPULSION (3) --- (None) > --- UTILITY (6) ------ Medium Storage Unit Improved Terrain Scan Processor 0b10 Decoder Chip [Generic] Core Analyzer Hacking Suite > --- WEAPON (2) ------- Heavy Pick > --- INVENTORY (10) --- Light Nuclear Core Improved Cooling System Weight Redist. System Target Analyzer Shock Rifle Heavy Machine Gun Heavy Missile Launcher Remote Datajack Peak State ------------ > --- POWER ------------ Light Ion Engine Light Deuterium Engine > --- PROPULSION ------- Flexi-carbon Leg Flexi-carbon Leg Flexi-carbon Leg > --- UTILITY ---------- Improved Heat Sink Advanced Heat Sink Medium Storage Unit Improved Terrain Scan Processor Core Analyzer Hacking Suite > --- WEAPON ----------- Lightning Gun Heavy Machine Gun > --- INVENTORY -------- Light Ion Engine Armored Treads Improved Cooling System Weight Redist. System Target Analyzer Improved Medium Laser Improved Medium Laser Heavy Missile Launcher Remote Datajack [Rating: 49] Favorites ----------- Power Light Deuterium Engine Engine Light Deuterium Engine Power Core Light Nuclear Core Propulsion Aluminum Leg Treads Armored Treads Leg Aluminum Leg Wheel Wheel Utility Medium Storage Unit Device Improved Terrain Scanner Storage Medium Storage Unit Processor Improved Terrain Scan Processor Hackware Hacking Suite Protection Reactive Plating Weapon Improved Medium Laser Energy Gun Improved Medium Laser Ballistic Gun AWS/Gauss Launcher Rocket Launcher Piercing Weapon Heavy Pick Build | -11 -10 -10 -10 -9 -8 -7 -7 -6 ------- Run | Yrd Mat Min Exi Min Mat Fac Low Zio Slots Evolved 6 | . . . . . 4 2 . . Power 1 | . . . . . 1 . . . Propulsion 1 | . . . . . 1 . . . Utility 4 | . . . . . 2 2 . . Weapon . | . . . . . . . . . Parts Attached 77 | 8 4 2 . 1 23 30 6 3 Power 15 | 1 . . . . 4 7 3 . Engine 8 | 1 . . . . 2 4 1 . Core 7 | . . . . . 2 3 2 . Reactor . | . . . . . . . . . Propulsion 19 | 3 . 2 . 1 7 5 1 . Treads 2 | . . . . . 1 1 . . Leg 12 | 2 . . . 1 5 4 . . Wheel 5 | 1 . 2 . . 1 . 1 . Hover . | . . . . . . . . . Flight . | . . . . . . . . . Utility 20 | 2 1 . . . 7 9 . 1 Device 9 | 1 . . . . 2 6 . . Storage 2 | 1 1 . . . . . . . Processor 4 | . . . . . 1 2 . 1 Hackware 2 | . . . . . 1 1 . . Protection 3 | . . . . . 3 . . . Artifact . | . . . . . . . . . Weapon 23 | 2 3 . . . 5 9 2 2 Energy Gun 12 | . 3 . . . 2 6 1 . Energy Cannon . | . . . . . . . . . Ballistic Gun 9 | 2 . . . . 2 3 1 1 Ballistic Cannon . | . . . . . . . . . Launcher 1 | . . . . . 1 . . . Special Weapon . | . . . . . . . . . Impact Weapon . | . . . . . . . . . Slashing Weapon . | . . . . . . . . . Piercing Weapon 1 | . . . . . . . . 1 Special Melee Weapon . | . . . . . . . . . Unidentified Prototypes 1 | . 1 . . . . . . . Parts Lost 35 | . . . . . 6 14 11 4 Power 10 | . . . . . 2 4 3 1 Propulsion 11 | . . . . . 3 4 3 1 Utility 6 | . . . . . 1 3 1 1 Weapon 8 | . . . . . . 3 4 1 Highest Loss Streak 9 | . . . . . 5 9 4 4 To Critical Strikes 1 | . . . . . 1 . . . Average Slot Usage (%) 91 | . 98 100 100 100 87 92 91 68 Engine 11 | . 14 14 14 14 12 11 6 6 Core 1 | . . . . . 3 1 6 . Leg 17 | . 28 14 14 16 20 21 16 . Wheel 4 | . . 14 14 11 3 . 1 6 Device 12 | . 14 14 14 14 11 12 15 6 Storage 9 | . 14 14 14 14 9 7 7 7 Processor 9 | . . . . . 3 13 15 20 Hackware 6 | . . . . . 7 10 7 7 Energy Gun 11 | . 23 28 28 28 5 5 10 . Ballistic Gun 3 | . 2 . . . 6 5 2 4 Peak Build Rating 49 | 9 14 14 16 16 41 49 48 35 Average Rating 32 | 5 13 14 15 16 32 44 39 30 On Entrance 19 | . 9 14 14 16 16 41 43 21 Naked Turns . | . . . . . . . . . Heaviest Build 47 | 15 22 22 22 22 47 37 39 33 Greatest Support 60 | 20 20 20 10 20 40 60 55 10 Greatest Overweight (x) 12 | 1 1 2 2 2 12 1 3 10 Average Overweight (x) 1 | . . 1 2 1 1 . . 2 Largest Inventory Capacity 10 | 8 10 10 10 10 10 10 10 10 Average Capacity 9 | 7 8 10 10 10 10 10 10 10 Most Carried 10 | 5 9 10 10 10 10 10 10 8 Average Carried 9 | 2 7 9 9 10 8 9 9 7 Final Capacity 10 | 8 10 10 10 10 10 10 10 10 Final Carried 10 | 4 9 10 10 10 10 10 8 8 Class Distribution -------------------- 37% | Scavenger-Mutant 31% | Scavenger-Skirmisher 28% | Mutant Dominant Class ---------------- Mutant | -10/Materials Mutant | -10/Mines Mutant | -10/Exiles Skirmisher | -9/Mines Scavenger-Skirmisher | -8/Materials Scavenger-Skirmisher | -7/Factory Scavenger-Mutant | -7/Lower Caves Scavenger-Mutant | -6/Zion Resources | -11 -10 -10 -10 -9 -8 -7 -7 -6 ----------- Run | Yrd Mat Min Exi Min Mat Fac Low Zio Matter Collected 1049 | 260 43 55 . . 201 321 128 41 Remotely . | . . . . . . . . . Salvage Created 1969 | 21 43 26 . . 955 518 406 . Parts 126 | 5 3 1 . . 59 37 21 . Haulers Intercepted 1 | . 1 . . . . . . . Recyclers Shooed 4 | . . . . . . 4 . . Parts Field Recycled . | . . . . . . . . . Retrieved Matter . | . . . . . . . . . Parts Self-Destructed 18 | . . . . . . . 18 . Prevented . | . . . . . . . . . Kills | -11 -10 -10 -10 -9 -8 -7 -7 -6 ------- Run | Yrd Mat Min Exi Min Mat Fac Low Zio Combat Hostiles Destroyed 40 | . . 2 . . 19 8 11 . Guns 37 | . . 2 . . 17 8 10 . AOE 2 | . . . . . 2 . . . Classes Destroyed 16 | 1 1 2 . . 8 4 . . Worker 7 | . . . . . 5 2 . . Builder 2 | . . . . . 2 . . . Tunneler 1 | 1 . . . . . . . . Hauler 1 | . 1 . . . . . . . Recycler 1 | . . . . . . 1 . . Operator 1 | . . . . . . 1 . . Watcher 3 | . . . . . 3 . . . Swarmer 11 | . . 1 . . 2 2 6 . Grunt 13 | . . . . . 9 . 4 . Brawler 2 | . . . . . 1 . 1 . Protector 1 | . . . . . 1 . . . Sentry 3 | . . . . . 3 . . . Specialist 2 | . . . . . . 2 . . Hunter 4 | . . . . . 3 1 . . Programmer 3 | . . . . . . 3 . . Assembled 1 | . . 1 . . . . . . Best Kill Streak 21 | 1 1 1 . . 21 4 3 . Combat Bots Only 15 | . . 1 . . 15 3 3 . Max Kills in Single Turn 7 | 1 1 1 . . 7 1 2 . Gunslinging 1 | . . . . . . . 1 . Exploded 2 | . . . . . 2 . . . Melee . | . . . . . . . . . Uniques/NPCs Destroyed . | . . . . . . . . . Combat | -11 -10 -10 -10 -9 -8 -7 -7 -6 -------- Run | Yrd Mat Min Exi Min Mat Fac Low Zio Hostile Shots Fired 442 | . . 14 . . 91 95 176 66 Missed 147 | . . 7 . . 32 21 67 20 Damage Taken 4008 | . . 54 . . 1054 1294 1052 554 Core 796 | . . 18 . . 76 202 248 252 Absorbed by Shields . | . . . . . . . . . Ignored by Resistances 29 | . . . . . 29 . . . Core Remaining (%) 92 | 100 . . . 92 86 . . . Volleys Fired 71 | 3 1 4 . . 5 35 23 . Largest 2 | 2 2 2 . . 2 2 2 . Hottest 112 | 40 112 112 . . 112 112 112 . Shots Fired 231 | 6 2 8 . . 97 75 43 . Gun 230 | 6 2 8 . . 96 75 43 . Cannon . | . . . . . . . . . Launcher 1 | . . . . . 1 . . . Special . | . . . . . . . . . Kinetic 130 | 6 . . . . 87 30 7 . Thermal 81 | . 2 8 . . 9 32 30 . Explosive 1 | . . . . . 1 . . . Electromagnetic 19 | . . . . . . 13 6 . Robot Hit Streak 13 | 1 1 2 . . 11 11 13 . Robot Miss Streak 6 | 2 . 4 . . 3 6 2 . Penetration Max . | . . . . . . . . . Secondary Targets 3 | . . . . . . 1 2 . Max Gunslinging Chain 1 | . . . . . . 1 1 . Autonomous 95 | . . . . . 87 8 . . Shots Hit Robots 156 | 2 1 3 . . 65 47 34 4 Core Hits 85 | 1 1 3 . . 39 20 19 2 Critical Kills . | . . . . . . . . . Critical Parts Destroyed 2 | . . . . . 1 1 . . Critical Strikes 9 | . . 1 . . 2 4 2 . Burn 7 | . . 1 . . 1 3 2 . Destroy 2 | . . . . . 1 1 . . Melee Attacks 4 | . . . . . . . . 4 Impact . | . . . . . . . . . Slashing . | . . . . . . . . . Piercing 4 | . . . . . . . . 4 Sneak Attacks . | . . . . . . . . . Combat Hostiles . | . . . . . . . . . Follow-up Attacks . | . . . . . . . . . Damage Inflicted 4628 | 37 17 53 . 1 2781 1056 571 112 Guns 3655 | 37 17 51 . . 1936 1043 571 . Cannons . | . . . . . . . . . Explosions 845 | . . . . . 845 . . . Melee 112 | . . . . . . . . 112 Ramming 16 | . . 2 . 1 . 13 . . Kinetic 2539 | 37 . . . . 1870 546 86 . Thermal 1500 | . 17 51 . . 667 355 410 . Explosive 244 | . . . . . 244 . . . Electromagnetic 217 | . . . . . . 142 75 . Impact . | . . . . . . . . . Slashing . | . . . . . . . . . Piercing 112 | . . . . . . . . 112 Highest Corruption 4 | . . . . . . 4 4 4 Average Corruption 3 | . . . . . . 3 4 3 Corruption Purged . | . . . . . . . . . Corruption Blocked . | . . . . . . . . . Effects 26 | . . . . . . 13 12 1 Message Errors 4 | . . . . . . 2 2 . Matter Fused 8 | . . . . . . 3 4 1 Heat Flow Errors 1 | . . . . . . 1 . . Energy Discharges 4 | . . . . . . 2 2 . Data Loss (minor) 4 | . . . . . . 1 3 . Data Loss (major) 1 | . . . . . . . 1 . Misfires 1 | . . . . . . 1 . . Alerts 1 | . . . . . . 1 . . Weapon Failures 2 | . . . . . . 2 . . Overload Shots . | . . . . . . . . . Overflow Damage 69 | . . . . . 69 . . . Projectiles . | . . . . . . . . . Explosions 69 | . . . . . 69 . . . Melee . | . . . . . . . . . Knockbacks . | . . . . . . . . . Impact . | . . . . . . . . . Kinetic . | . . . . . . . . . Secondary . | . . . . . . . . . Self-Inflicted Damage 208 | . . 1 . . 207 . . . Shots 3 | . . . . . 3 . . . Rammed 2 | . . 1 . 1 . . . . Targets Rammed 3 | . . 1 . 1 . 1 . . Kicked 1 | . . . . . . 1 . . Crushed . | . . . . . . . . . Highest Temperature 197 | . 51 153 . . 197 119 3 46 Average Temperature 54 | . 30 67 . . 77 42 3 29 Received Heat Transfer 737 | . . . . . 297 . 180 260 Siege Activations . | . . . . . . . . . Robots Corrupted . | . . . . . . . . . Combat Hostiles . | . . . . . . . . . Parts Fried . | . . . . . . . . . Impact Corruptions . | . . . . . . . . . Robots Melted 1 | . . . . . . . 1 . Combat Hostiles 1 | . . . . . . . 1 . Parts Melted 4 | . . . . . . . 4 . Heat Transferred 2842 | . 37 185 . . 622 962 1036 . Parts Sabotaged . | . . . . . . . . . Parts Stolen . | . . . . . . . . . Parts Stripped . | . . . . . . . . . Power Chain Reactions . | . . . . . . . . . Alert | -11 -10 -10 -10 -9 -8 -7 -7 -6 ------- Run | Yrd Mat Min Exi Min Mat Fac Low Zio Peak Influence 743 | 5 25 54 . . 743 100 . . Initial 100 | . 3 9 . . . 100 . . Average 89 | 1 5 29 . . 298 49 . . Maximum Alert Level 3 | . . . . . 3 . . . Low Security (%) 89 | 100 100 100 . 100 44 100 . . Level 1 2 | . . . . . 10 . . . Level 2 7 | . . . . . 37 . . . Level 3 1 | . . . . . 6 . . . Level 4 . | . . . . . . . . . Level 5 . | . . . . . . . . . High Security . | . . . . . . . . . Max Security . | . . . . . . . . . Squads Dispatched 12 | . . . . . 5 7 . . Investigation 5 | . . . . . 2 3 . . Extermination 2 | . . . . . . 2 . . Reinforcement 3 | . . . . . 1 2 . . Assault 1 | . . . . . 1 . . . Garrison 1 | . . . . . 1 . . . Intercept . | . . . . . . . . . Searches Triggered . | . . . . . . . . . Construction Impeded 1 | . . . . . 1 . . . Haulers Reinforced . | . . . . . . . . . Active Scanning Responses . | . . . . . . . . . Cargo Convoy Interrupts . | . . . . . . . . . Stealth | -11 -10 -10 -10 -9 -8 -7 -7 -6 --------- Run | Yrd Mat Min Exi Min Mat Fac Low Zio Distress Signals 3 | . . . . . 2 1 . . Communications Jammed . | . . . . . . . . . Distress Signals . | . . . . . . . . . Times Spotted 67 | . 1 9 . . 24 14 15 4 Peak Tracking Total 8 | . . 5 . . 6 4 6 8 Tactical Retreats 3 | . . 1 . . . . 1 1 Traps | -11 -10 -10 -10 -9 -8 -7 -7 -6 ------- Run | Yrd Mat Min Exi Min Mat Fac Low Zio Traps Triggered 1 | . . . . . 1 . . . Indirectly . | . . . . . . . . . Trap Hack Attempts . | . . . . . . . . . Triggered . | . . . . . . . . . Disarmed . | . . . . . . . . . Reprogrammed . | . . . . . . . . . Reused . | . . . . . . . . . Traps Extracted . | . . . . . . . . . Installed . | . . . . . . . . . Triggered . | . . . . . . . . . Machines | -11 -10 -10 -10 -9 -8 -7 -7 -6 ---------- Run | Yrd Mat Min Exi Min Mat Fac Low Zio Machines Disabled 9 | . . . . . 8 1 . . Max in Single Turn 5 | . . . . . 5 1 . . Garrison Access 1 | . . . . . 1 . . . Machines Repaired . | . . . . . . . . . Machines Dismantled . | . . . . . . . . . Machines Sabotaged . | . . . . . . . . . Overloaded Fab Kills . | . . . . . . . . . Hacking | -11 -10 -10 -10 -9 -8 -7 -7 -6 --------- Run | Yrd Mat Min Exi Min Mat Fac Low Zio Machines Accessed 16 | . 1 . 4 . 6 5 . . Terminals 7 | . 1 . . . 4 2 . . Fabricators 1 | . . . . . . 1 . . Repair Stations . | . . . . . . . . . Recycling Units 2 | . . . . . . 2 . . Scanalyzers 2 | . . . . . 2 . . . Garrison Access . | . . . . . . . . . Total Hacks 70 | . 2 . 27 . 33 8 . . Successful 59 | . 1 . 27 . 28 3 . . Failed 11 | . 1 . . . 5 5 . . Catastrophic 2 | . . . . . 1 1 . . Database Lockouts . | . . . . . . . . . Manual 13 | . . . 1 . 9 3 . . Terminals 17 | . 2 . . . 12 3 . . Fabricators 2 | . . . . . . 2 . . Repair Stations . | . . . . . . . . . Recycling Units 3 | . . . . . . 3 . . Scanalyzers 21 | . . . . . 21 . . . Garrison Access . | . . . . . . . . . Terminal Hacks 35 | . 1 . 27 . 7 . . . Record 26 | . . . 26 . . . . . Terminal Index 1 | . . . . . 1 . . . Alert Level 1 | . . . . . 1 . . . Unreport Threat 3 | . . . . . 3 . . . Locate Traps 1 | . . . . . 1 . . . Hauler Manifests 1 | . 1 . . . . . . . Zone Layout 1 | . . . . . 1 . . . Derelict Proto ID Bank 1 | . . . 1 . . . . . Fabricator Hacks 2 | . . . . . . 2 . . Load Schematic 1 | . . . . . . 1 . . Build 1 | . . . . . . 1 . . Repair Station Hacks . | . . . . . . . . . Recycling Unit Hacks 1 | . . . . . . 1 . . Retrieve Components 1 | . . . . . . 1 . . Scanalyzer 21 | . . . . . 21 . . . Insert Component 10 | . . . . . 10 . . . Analyze 11 | . . . . . 11 . . . Garrison Access Hacks . | . . . . . . . . . Unauthorized Hacks . | . . . . . . . . . Terminals . | . . . . . . . . . Fabricators . | . . . . . . . . . Repair Stations . | . . . . . . . . . Recycling Units . | . . . . . . . . . Scanalyzers . | . . . . . . . . . Garrison Access . | . . . . . . . . . Data Cores Recovered 1 | . . . . . . 1 . . Used . | . . . . . . . . . Hacking Detections 10 | . 1 . . . 5 4 . . Full Trace Events 3 | . . . . . 1 2 . . Feedback Events . | . . . . . . . . . Feedback Blocked . | . . . . . . . . . Robot Schematics Acquired . | . . . . . . . . . Robots Built . | . . . . . . . . . Authchips . | . . . . . . . . . Time . | . . . . . . . . . Total Robot Build Rating . | . . . . . . . . . Part Schematics Acquired 9 | . . . . . 9 . . . Parts Built 1 | . . . . . . 1 . . Authchips . | . . . . . . . . . Time 73 | . . . . . . 73 . . Total Part Build Rating 3 | . . . . . . 3 . . Parts Repaired . | . . . . . . . . . Time . | . . . . . . . . . Parts Recycled . | . . . . . . . . . Recycled Matter . | . . . . . . . . . Retrieved Matter . | . . . . . . . . . Retrieved Components 10 | . . . . . . 10 . . Parts Scanalyzed 9 | . . . . . 9 . . . Part Schematics Acquired 9 | . . . . . 9 . . . Parts Damaged 1 | . . . . . 1 . . . Bothacking | -11 -10 -10 -10 -9 -8 -7 -7 -6 ------------ Run | Yrd Mat Min Exi Min Mat Fac Low Zio Used RIF Installer . | . . . . . . . . . Robots Hacked . | . . . . . . . . . Non-combat . | . . . . . . . . . Combat . | . . . . . . . . . Robot Hacks Applied . | . . . . . . . . . Relay Couplers Released 2 | . . . . . 2 . . . Machine Destruction 2 | . . . . . 2 . . . Fabnet Peak Effective % . | . . . . . . . . . Robots Rewired . | . . . . . . . . . Allies Hacked . | . . . . . . . . . Hacks Repelled . | . . . . . . . . . Allies | -11 -10 -10 -10 -9 -8 -7 -7 -6 -------- Run | Yrd Mat Min Exi Min Mat Fac Low Zio Total Allies . | . . . . . . . . . Largest Group . | . . . . . . . . . Highest-Rated Group . | . . . . . . . . . Highest-Rated Ally . | . . . . . . . . . Total Orders . | . . . . . . . . . Ally Attacks . | . . . . . . . . . Total Damage . | . . . . . . . . . Kills . | . . . . . . . . . Allies Corrupted . | . . . . . . . . . Allies Melted . | . . . . . . . . . Intel | -11 -10 -10 -10 -9 -8 -7 -7 -6 ------- Run | Yrd Mat Min Exi Min Mat Fac Low Zio Robot Analysis Total . | . . . . . . . . . Derelict Logs Recovered 8 | . . 2 . 1 . . 2 3 Drone Launches . | . . . . . . . . . Drone Recoveries . | . . . . . . . . . Exploration | -11 -10 -10 -10 -9 -8 -7 -7 -6 ------------- Run | Yrd Mat Min Exi Min Mat Fac Low Zio Turns Passed 3955 | 85 99 573 341 54 527 1353 541 382 Spaces Moved 2322 | 52 64 429 306 38 340 458 354 281 Core 6 | 3 . . . . 1 . . 2 Treads 2 | . . . . . . 2 . . Legs 1041 | 40 64 1 . 2 191 456 287 . Wheels 1273 | 9 . 428 306 36 148 . 67 279 Hover . | . . . . . . . . . Flight . | . . . . . . . . . Fastest Speed 50 | 50 120 110 110 110 95 120 110 110 Average Speed 121 | 114 133 112 110 114 132 121 129 122 Slowest Speed 650 | 120 190 190 110 190 650 250 260 550 Overloaded Moves . | . . . . . . . . . Propulsion Burnouts . | . . . . . . . . . Robots Hopped . | . . . . . . . . . Cave-ins Triggered . | . . . . . . . . . Exploration Rate (%) 34 | 4 15 68 53 11 41 10 55 51 Regions Visited 8 Branch Regions 5 Pre-discovered Areas 1 | . . 1 . . . . . . Known Exits Taken 1 | . . . . . 1 . . . Unknown Exits Taken 7 | 1 1 1 1 1 . 1 1 . Scrap Searched 4 | . . 1 . . . . 1 2 Spaces Dug . | . . . . . . . . . Terrain Destroyed 136 | . . . . . 136 . . . Melee . | . . . . . . . . . Projectile 45 | . . . . . 45 . . . AOE 91 | . . . . . 91 . . . Terrain Rammed . | . . . . . . . . . Walls Destroyed . | . . . . . . . . . Machines Disabled . | . . . . . . . . . Actions | -11 -10 -10 -10 -9 -8 -7 -7 -6 --------- Run | Yrd Mat Min Exi Min Mat Fac Low Zio Total 3315 | 68 78 511 312 48 408 1186 394 310 Wait 767 | . . 70 . 9 20 636 11 21 Move 2314 | 51 63 428 305 37 339 457 353 281 Hop . | . . . . . . . . . Pick Up 37 | 6 4 3 3 . 9 11 . 1 Fast Attach 32 | 5 3 . . . 6 13 3 2 Attach 27 | 2 . . . . 10 12 2 1 Detach 13 | . 3 . . . 5 5 . . Swap 18 | 1 1 2 . 1 7 5 1 . Drop 28 | . 3 3 4 . 7 10 1 . Fire 71 | 3 1 4 . . 5 35 23 . Melee 4 | . . . . . . . . 4 Ram 2 | . . 1 . 1 . . . . Kick 1 | . . . . . . 1 . . Crush . | . . . . . . . . . Escape Stasis . | . . . . . . . . . Rewire 1 | . . . . . . 1 . . Trap . | . . . . . . . . . Miscellaneous . | . . . . . . . . . Route ------- -11/Scrapyard -10/Materials -10/Mines -10/Exiles -9/Mines -8/Materials (discovered 2 exits: *Fac / Sto) -7/Factory -7/Lower Caves (discovered 2 exits: [*Low] / [*Zio]) -6/Zion History --------- Turn | Location | Event 11 | -11/Scrapyard | Discovered new exit (range 15) 86 | -11/Scrapyard | Entered Materials 147 | -10/Materials | Discovered new exit (range 16) 162 | -10/Materials | Met 8R-AWN 185 | -10/Materials | Entered Mines 187 | -10/Mines | Followed 8R-AWN into the Mines 303 | -10/Mines | Build established: Mutant 403 | -10/Mines | Assembled infested the area 569 | -10/Mines | Received a Rocket Launcher from a helpful Derelict 753 | -10/Mines | Discovered new exit (range 5) 758 | -10/Mines | Entered Exiles 779 | -10/Exiles | Discovered new exit (range 15) 812 | -10/Exiles | Welcomed by 8R-AWN 828 | -10/Exiles | Met EX-HEX 864 | -10/Exiles | Met EX-BIN 890 | -10/Exiles | Aligned with FarCom system 891 | -10/Exiles | Given EX-Vault access code 938 | -10/Exiles | Opened EX-Vault 957 | -10/Exiles | Found AWS/Gauss 980 | -10/Exiles | Warned to stay clear of 0b10 Research branches 1010 | -10/Exiles | Met EX-DEC 1063 | -10/Exiles | Learned about 8R-AWN's background 1099 | -10/Exiles | Left Exiles lab with AWS/Gauss 1099 | -10/Exiles | Entered Mines 1101 | -9/Mines | Learned Materials emergency access door positions 1145 | -9/Mines | Discovered new exit (range 5) 1153 | -9/Mines | Entered Materials 1153 | -8/Materials | Evolved 4 slots: Power x1, Propulsion x1, Utility x2 1154 | -8/Materials | Identified exit to Storage 1302 | -8/Materials | Garrison activated, responded to threat 1376 | -8/Materials | Lost 5 parts (2p2n1u) 1404 | -8/Materials | Destroyed 15 combat bots 1633 | -8/Materials | Discovered new exit (range 14) 1679 | -8/Materials | Identified exit to Factory 1680 | -8/Materials | Entered Factory 1680 | -7/Factory | Evolved 2 slots: Utility x2 1704 | -7/Factory | Build established: Scavenger-Skirmisher 1893 | -7/Factory | Fabricated Hacking Suite (x1) 2333 | -7/Factory | AWS/Gauss suddenly broke down 2532 | -7/Factory | Lost 9 parts (2p3n3u1w) 2797 | -7/Factory | Lost 3 parts (1p1n1w) 2819 | -7/Factory | Build established: Scavenger-Mutant 3017 | -7/Factory | Discovered new exit (range 12) 3033 | -7/Factory | Entered Lower Caves 3298 | -7/Lower Caves | Spotted B-75 Beast 3351 | -7/Lower Caves | Lost 4 parts (2p1n1w) 3424 | -7/Lower Caves | Core integrity fell below 50% 3449 | -7/Lower Caves | Attracted the attention of an 0b10 checkpoint 3545 | -7/Lower Caves | Learned 4 Factory zone layouts 3561 | -7/Lower Caves | Discovered new exit (range 10) 3562 | -7/Lower Caves | A Derelict revealed a hidden shortcut to a safe place 3574 | -7/Lower Caves | Entered Zion 3584 | -6/Zion | Given A8's code to call for help 3603 | -6/Zion | Learned 8 Factory zone layouts 3604 | -6/Zion | Lost 4 parts (1p1u2w) 3621 | -6/Zion | System corruption cleaned by Quarantine Array 3683 | -6/Zion | Learned Factory garrison access intel 3890 | -6/Zion | Rebuked by Imprinter 3914 | -6/Zion | Attempted to imprint without authorization 3914 | -6/Zion | Attacked by Zionites 3946 | -6/Zion | Core integrity fell below 20% 3956 | -6/Zion | Destroyed by L7-3I5(M) with Enhanced Flamer Last Messages --------------- specimen to our ranks, but no. I can sense their tech three caves away. Get out of here before I'm forced to do something you'll regret. PUBLIC SERVICE ANNOUNCEMENT: Quarantine Array scanned 1 system, cleaned 0. IMPRINTER ALERT: Unauthorized bot attempting to interface! Defend our home! TI-IT4(c) calibrates the Memory Banks. B9-QQI(c) calibrates the Memory Banks. TI-IT4(c) calibrates the Memory Banks. Wheel destroyed. Imp. Heat Sink destroyed. TI-IT4(c) calibrates the Memory Banks. Memory Banks disabled. Rnf. Deuterium Engine destroyed. Gauss Rifle destroyed. Critical hit (Burn: +80). 6A-LC7(M) destroyed. IMP:G-0014175/C-0630194 disabled. Map ----- +----------------------------------------------------+ | ????????????????###"#""""""## " | | ??????###########"""""""""""" " | | ????"""""""""" ###" """" " | | ???#"""""""""" #""" " | | ???#"" #""" " | | ?????""""" ##"" """ " | | ?????"""""" """"" " | | ?????"""""" """"" "" | | ??????""""" """#" """" | | ???????""" ###" ""##"" "#"" | | ????"" #""" ""##""" """" | | ????"""""""""" #""" """""" """ | | ?????""""""""" #"#" """##" "? | | ?????############"" ""#""" ? | | ???????????#####""# "##??" | | ??????????##"""#### #"#??" | | ??????????#" #"#??" ? | | ??????????#" #????"" ?? | | ??????????#" #?????? ???? | | ??????????## #### #?????????????? | | ???????????# #??######?????????????? | | ???????##### #####?????????????????? | | ???????""""" """""?????????????????? | | ?????######"c "######???????????????? | | ?????# " "!MM " #???????????????? | | ?????# " =%@ """ #???????????????? | | ?????#"""" " " #???????????????? | | ?????#""""" M """"#???????????????? | | ?????#""""" """" #???????????????? | | ?????#" "" "" ""#???????????????? | | ?????#"" """" "" " #???????????????? | | ?????#""""""" """""" #???????????????? | | ?????#"""" """"""""""#???????????????? | | ?????# " """"" #???????????????? | | ?????? """""""""""" ????????????????? | | ??????""""""""" """""????????????????? | | ????????? """"" ""???????????????????? | | ????????????""" "????????????????????? | | ??????????????? ????????????????????? | | ?????????????????????????????????????? | | ?????????????????????????????????????? | | ?????????????????????????????????????? | | ?????????????????????????????????????? | | ?????????????????????????????????????? | | ?????????????????????????????????????? | | ?????????????????????????????????????? | | ?????????????????????????????????????? | | ?????????????????????????????????????? | | ?????????????????????????????????????? | | ?????????????????????????????????????? | +----------------------------------------------------+ Best States ------------- Heat Dissipation 67 Energy Generation 28 Energy Capacity 415 Matter Stores 300 Matter Capacity 300 Sight Range 16 Robot Scan Range 15 Terrain Scan Range 16 Terrain Scan Density 110 Additional Mass Support 6 Armor Coverage 225 Resistance: KI 20 Evasion (%) 55 Core Analysis 6 Recoil Reduction 1 Offensive Hacking 20 Item Schematics ----------------- Hacking Suite | -8/Materials | Scanalyzed Fission Core | -8/Materials | Scanalyzed Carbon-fiber Leg | -8/Materials | Scanalyzed Lgt. Deuterium Engine | -8/Materials | Scanalyzed Beam Rifle | -8/Materials | Scanalyzed Imp. Medium Laser | -8/Materials | Scanalyzed Imp. Cooling System | -8/Materials | Scanalyzed Hvy. Missile Launcher | -8/Materials | Scanalyzed Weight Redist. System | -8/Materials | Scanalyzed Robot Schematics ------------------ None Fabricated ------------ Hacking Suite | x1 | -7/Factory Alien Tech Used ----------------- None Achievements -------------- None Challenges ------------ None Game ------ Seed CombatOmegaSword Manual? 0 Play Time 00:45:23 Cumulative 24.2 hours Start 2025.01.07 @ 11:37:25 End 2025.01.07 @ 12:20:04 Sessions 1 Manual Loads 0 Difficulty Rogue Special Mode None Game No. 32 Rogue 15 Adventurer 16 Explorer 1 Win Type - Total 3 Types 3/0/0/0/0/0/0/0/0 Lore% 7 Gallery% 30 Achievement% 31 Wizard Run 0 Options --------- Layout 1 ASCII 0 Keyboard 0 Movement Mouse Keybinds 0 Fullscreen 1 Font 24/Smallcaps Map View 50x35 Zoom Use 0% Tactical HUD 0 Map Filters NONE Filters NONE Steam 1 RUN: f304a9df-ec8e-4fe1-be14-bc5662079740